fUSD/lending_fUSD_20240220
["ID","MTS","AMOUNT","RATE_DAILY","PERIOD"]
[314587771,1708435840479,-500.0,0.0003589,2]
[314587772,1708435840488,-500.0,0.0003589,2]
[314587773,1708435840498,-500.0,0.0003589,2]
[314587774,1708435840508,-500.0,0.0003589,2]
[314587775,1708435840518,-500.0,0.0003589,2]
[314587776,1708435840527,-500.0,0.0003589,2]
[314587777,1708435840537,-500.0,0.0003589,2]
[314587778,1708435840547,-500.0,0.0003589,2]
[314587779,1708435840556,-1123.8815153,0.0003589,2]
[314587780,1708435840566,-500.0,0.0003589,2]
[314587781,1708435840576,-529.20734104,0.0003589,2]
[314587782,1708435840585,-500.0,0.0003589,2]
[314587783,1708435840595,-500.0,0.0003589,2]
[314587784,1708435840605,-500.0,0.0003589,2]
[314587785,1708435840614,-500.0,0.0003589,2]
[314587786,1708435840624,-500.0,0.0003589,2]
[314587787,1708435840634,-500.0,0.0003589,2]
[314587788,1708435840643,-500.0,0.0003589,2]
[314587789,1708435840653,-271.11056082,0.0003589,2]
[314587790,1708435840662,-500.0,0.0003589,2]
[314587791,1708435840672,-500.0,0.0003589,2]
[314587792,1708435840682,-500.0,0.0003589,2]
[314587793,1708435840691,-500.0,0.0003589,2]
[314587794,1708435841016,-533.18469467,0.0003589,2]
[314587795,1708435841025,-500.0,0.0003589,2]
[314587796,1708435841035,-512.6640818,0.0003589,2]
[314587797,1708435841044,-1000.0,0.0003589,7]
[314587798,1708435841053,-500.0,0.0003589,2]
[314587799,1708435841062,-500.0,0.0003589,2]
[314587800,1708435841072,-500.0,0.0003589,2]
[314587801,1708435841081,-500.0,0.0003589,2]
[314587802,1708435841090,-507.09386467,0.0003589,2]
[314587803,1708435841099,-535.38692978,0.0003589,2]
[314587804,1708435841108,-500.0,0.0003589,2]
[314587805,1708435841117,-500.0,0.0003589,2]
[314587806,1708435841127,-500.0,0.0003589,2]
[314587807,1708435841136,-500.0,0.0003589,2]
[314587808,1708435841146,-500.0,0.0003589,2]
[314587809,1708435841155,-500.0,0.0003589,2]
[314587810,1708435841164,-497.37126,0.0003589,2]
[314587811,1708435841174,-500.0,0.0003589,2]
[314587812,1708435841183,-329.21,0.0003589,2]
[314587813,1708435841192,-170.46413157,0.0003589,2]
[314587814,1708435841201,-500.0,0.0003589,2]
[314587815,1708435841210,-500.0,0.0003589,2]
[314587816,1708435841219,-500.0,0.0003589,2]
[314587817,1708435841228,-500.0,0.0003589,2]
[314587818,1708435841237,-500.0,0.0003589,2]
[314587819,1708435841247,-500.0,0.0003589,2]
[314587820,1708435841257,-500.0,0.0003589,2]
[314587821,1708435841266,-500.0,0.0003589,2]
[314587822,1708435841275,-341.27,0.00036066,2]
[314587823,1708435841285,-197.7198909,0.00036147,2]
[314587824,1708435841294,-501.34591441,0.00036164,2]
[314587825,1708435841304,-707.68,0.00036164,2]
[314587826,1708435841314,-500.0,0.00036164,2]
[314587827,1708435841323,-500.0,0.00036164,2]
[314587828,1708435841333,-500.0,0.00036164,2]
[314587830,1708435841343,-500.0,0.00036164,2]
[314587832,1708435841352,-500.0,0.00036164,2]
[314587834,1708435841361,-500.0,0.00036164,2]
[314587836,1708435841370,-500.0,0.00036164,2]
[314587837,1708435841381,-500.0,0.00036164,2]
[314587838,1708435841390,-500.0,0.00036164,2]
[314587839,1708435841399,-325.11094987,0.00036164,2]
[314587840,1708435841408,-500.0,0.00036164,2]
[314587841,1708435841418,-532.9483548,0.00036164,2]
[314587842,1708435841427,-500.0,0.00036164,2]
[314587843,1708435841436,-500.0,0.00036164,2]
[314587844,1708435841447,-500.0,0.00036164,2]
[314587845,1708435841457,-500.0,0.00036164,2]
[314587846,1708435841467,-500.0,0.00036164,2]
[314587847,1708435841476,-553.54442757,0.00036164,2]
[314587848,1708435841485,-500.0,0.00036164,2]
[314587849,1708435841494,-500.0,0.00036164,2]
[314587850,1708435841504,-500.0,0.00036164,2]
[314587851,1708435841513,-507.27829159,0.00036164,2]
[314587852,1708435841523,-500.0,0.00036164,2]
[314587853,1708435841533,-500.0,0.00036164,2]
[314587854,1708435841542,-500.0,0.00036164,2]
[314587855,1708435841551,-500.0,0.00036164,2]
[314587856,1708435841561,-500.0,0.00036164,2]
[314587857,1708435841570,-500.0,0.00036164,2]
[314587858,1708435841580,-500.0,0.00036164,2]
[314587859,1708435841589,-1034.21160812,0.00036164,7]
[314587860,1708435841598,-500.0,0.00036164,2]
[314587861,1708435841608,-500.0,0.00036164,2]
[314587862,1708435841618,-500.0,0.00036164,2]
[314587863,1708435841631,-157.23758667,0.00036164,2]
[314587864,1708435841641,-171.13,0.00036164,2]
[314587865,1708435841651,-500.0,0.00036164,2]
[314587866,1708435841660,-216.0,0.00036164,2]
[314587867,1708435841670,-500.0,0.00036164,2]
[314587868,1708435841681,-500.0,0.00036164,2]
[314587869,1708435841690,-500.0,0.00036164,2]
[314587870,1708435841700,-500.0,0.00036164,2]
[314587871,1708435841709,-500.0,0.00036164,2]
[314587872,1708435841719,-500.0,0.00036164,2]
[314587873,1708435841729,-172.71046238,0.000363,5]
[314587874,1708435841738,-11567.05050828,0.00036389,2]
[314587875,1708435841747,-707.68,0.00036438,2]
[314587876,1708435841757,-500.0,0.00036438,2]
[314587877,1708435841766,-500.0,0.00036438,2]
[314587878,1708435841776,-500.0,0.00036438,2]
[314587879,1708435841786,-517.748382,0.00036438,2]
[314587880,1708435841795,-441.56395713,0.00036438,2]
[314587881,1708435841804,-500.0,0.00036438,2]
[314587882,1708435841814,-587.06246434,0.00036438,2]
[314587883,1708435841823,-500.0,0.00036438,2]
[314587884,1708435841832,-500.0,0.00036438,2]
[314587885,1708435841842,-500.0,0.00036438,2]
[314587886,1708435841851,-500.0,0.00036438,2]
[314587887,1708435841861,-500.0,0.00036438,2]
[314587888,1708435841871,-500.0,0.00036438,2]
[314587889,1708435841884,-500.0,0.00036438,2]
[314587890,1708435841893,-500.0,0.00036438,2]
[314587891,1708435841903,-162.68,0.00036438,2]
[314587892,1708435841912,-500.0,0.00036438,2]
[314587893,1708435841922,-500.0,0.00036438,2]
[314587894,1708435841932,-500.0,0.00036438,2]
[314587895,1708435841941,-500.0,0.00036438,2]
[314587896,1708435841952,-500.0,0.00036438,2]
[314587897,1708435841961,-622.45,0.00036438,2]
[314587898,1708435841970,-489.5,0.00036438,2]
[314587899,1708435841980,-500.0,0.00036438,2]
[314587900,1708435841989,-500.0,0.00036438,2]
[314587901,1708435841999,-152.98,0.00036438,2]
[314587902,1708435842009,-150.0,0.000366,2]
[314587903,1708435842018,-707.68,0.00036712,2]
[314587904,1708435842027,-195.9,0.00036712,2]
[314587905,1708435842039,-500.0,0.00036712,2]
[314587906,1708435842049,-500.0,0.00036712,2]
[314587907,1708435842058,-500.0,0.00036712,2]
[314587908,1708435842067,-456.29128285,0.00036712,2]
[314587909,1708435842076,-500.0,0.00036712,2]
[314587910,1708435842085,-500.0,0.00036712,2]
[314587911,1708435842094,-500.0,0.00036712,2]
[314587912,1708435842103,-317.0,0.00036712,2]
[314587913,1708435842113,-500.0,0.00036712,2]
[314587914,1708435842122,-509.81797854,0.00036798,2]
[314587915,1708435842132,-509.81797846,0.00036798,2]
[314587916,1708435842142,-197.7198909,0.00036855,2]
[314587917,1708435842150,-11567.05050824,0.00036871,2]
[314587918,1708435842160,-1000.0,0.00036886,2]
[314587919,1708435842169,-5000.0,0.00036886,3]
[314587920,1708435842178,-707.68,0.00036986,2]
[314587921,1708435842188,-500.0,0.00036986,2]
[314587922,1708435842197,-500.0,0.00036986,2]
[314587923,1708435842207,-500.0,0.00036986,2]
[314587924,1708435842217,-500.0,0.00036986,2]
[314587925,1708435842226,-500.0,0.00036986,2]
[314587926,1708435842235,-211.0,0.0003706,2]
[314587927,1708435842244,-164.68,0.00037075,2]
[314587928,1708435842253,-189.77979257,0.0003715,2]
[314587929,1708435842262,-374.70754577,0.00037159,30]
[314587930,1708435842271,-100000.0,0.0003716,2]
[314587931,1708435842281,-201736.05284767,0.0003716,2]
[314587932,1708435842400,-688.5,0.0003716,2]
[314587933,1708435842412,-42575.44715233,0.0003716,2]
[314587934,1708435842421,-4669.7399,0.0003716,10]
[314587935,1708435842431,-612.95620508,0.0003716,8]
[314587936,1708435842440,-5488.12662195,0.0003726,15]
[314587937,1708435842450,-707.68,0.0003726,2]
[314587938,1708435842459,-500.0,0.0003726,2]
[314587939,1708435842469,-500.0,0.0003726,2]
[314587940,1708435842478,-500.0,0.0003726,2]
[314587941,1708435842488,-500.0,0.0003726,2]
[314587942,1708435842498,-783.78467868,0.00037369,2]
[314587943,1708435842508,-707.68,0.00037534,2]
[314587944,1708435842518,-500.0,0.00037534,2]
[314587945,1708435842528,-500.0,0.00037534,2]
[314587946,1708435842538,-500.0,0.00037534,2]
[314587947,1708435842548,-500.0,0.00037534,2]
[314587948,1708435842557,-197.7198909,0.00037563,2]
[314587949,1708435842567,-180.0,0.00037671,2]
[314587950,1708435842577,-1000.0,0.00037783,2]
[314587951,1708435842587,-707.68,0.00037808,2]
[314587953,1708435842597,-500.0,0.00037808,2]
[314587954,1708435842607,-500.0,0.00037808,2]
[314587955,1708435842617,-500.0,0.00037808,2]
[314587957,1708435842628,-500.0,0.00037808,2]
[314587958,1708435842638,-707.68,0.00038082,2]
[314587959,1708435842647,-500.0,0.00038082,2]
[314587961,1708435842657,-500.0,0.00038082,2]
[314587962,1708435842667,-500.0,0.00038082,2]
[314587963,1708435842677,-500.0,0.00038082,2]
[314587964,1708435842686,-197.7198909,0.00038271,2]
[314587965,1708435842696,-210.0,0.00038313,4]
[314587966,1708435842706,-341.27,0.0003833,2]
[314587967,1708435842716,-164.68,0.00038352,2]
[314587968,1708435842726,-707.68,0.00038356,2]
[314587969,1708435842736,-500.0,0.00038356,2]
[314587970,1708435842746,-500.0,0.00038356,2]
[314587971,1708435842755,-500.0,0.00038356,2]
[314587972,1708435842764,-160.37,0.00038356,2]
[314587973,1708435842774,-152.3,0.00038356,2]
[314587974,1708435842782,-509.81797846,0.0003843,2]
[314587975,1708435842791,-11567.05050824,0.00038499,2]
[314587976,1708435842800,-707.68,0.0003863,6]
[314587977,1708435842810,-500.0,0.0003863,6]
[314587978,1708435842819,-500.0,0.0003863,6]
[314587979,1708435842829,-500.0,0.0003863,6]
[314587980,1708435842838,-707.68,0.00038904,6]
[314587982,1708435842848,-500.0,0.00038904,6]
[314587983,1708435842858,-500.0,0.00038904,6]
[314587984,1708435842867,-586.02,0.00038904,6]
[314587985,1708435842880,-783.78467868,0.00038948,2]
[314587986,1708435842890,-197.7198909,0.00038979,2]
[314587987,1708435842899,-454.0,0.00039028,2]
[314587988,1708435842908,-8169.0,0.00039028,2]
[314587989,1708435842917,-12220.864,0.00039028,2]
[314587990,1708435842927,-1421.147,0.00039028,2]
[314587991,1708435842936,-2291.0,0.00039028,2]
[314587992,1708435842945,-171.278,0.00039028,2]
[314587993,1708435842955,-216.0,0.00039028,2]
[314587994,1708435842964,-666.0,0.00039041,2]
[314587995,1708435842973,-707.68,0.00039178,6]
[314587996,1708435842982,-500.0,0.00039178,6]
[314587997,1708435842991,-500.0,0.00039178,6]
[314587998,1708435843000,-707.68,0.00039452,6]
[314587999,1708435843010,-500.0,0.00039452,6]
[314588000,1708435843019,-500.0,0.00039452,6]
[314588001,1708435843028,-2000.0,0.000395,2]
[314588002,1708435843037,-164.68,0.0003963,2]
[314588003,1708435843046,-197.7198909,0.00039687,2]
[314588004,1708435843056,-707.68,0.00039726,6]
[314588005,1708435843065,-500.0,0.00039726,6]
[314588006,1708435843074,-500.0,0.00039726,6]
[314588007,1708435843083,-275.97,0.000398,3]
[314588008,1708435843092,-275.97,0.000398,3]
[314588009,1708435843101,-275.97,0.000398,3]
[314588010,1708435843110,-275.97,0.000398,3]
[314588011,1708435843119,-275.97,0.000398,3]
[314588012,1708435843130,-275.97,0.000398,3]
[314588013,1708435843139,-275.97,0.000398,3]
[314588014,1708435843148,-275.97,0.000398,3]
[314588015,1708435843158,-275.97,0.000398,3]
[314588016,1708435843167,-275.97,0.000398,3]
[314588017,1708435843176,-275.97,0.000398,3]
[314588018,1708435843185,-275.97,0.000398,3]
[314588019,1708435843194,-275.97,0.000398,3]
[314588020,1708435843203,-275.97,0.000398,3]
[314588022,1708435843212,-275.97,0.000398,3]
[314588023,1708435843221,-275.97,0.000398,3]
[314588024,1708435843231,-275.97,0.000398,3]
[314588025,1708435843240,-275.97,0.000398,3]
[314588026,1708435843250,-275.97,0.000398,3]
[314588027,1708435843259,-275.97,0.000398,3]
[314588028,1708435843269,-153.80130942,0.000399,13]
[314588029,1708435843279,-707.68,0.0004,6]
[314588030,1708435843289,-500.0,0.0004,6]
[314588031,1708435843421,-500.0,0.0004,6]
[314588032,1708435843431,-29599.9976898,0.0004,7]
[314588033,1708435843440,-509.81797846,0.00040069,2]
[314588034,1708435843449,-707.68,0.00040273,6]
[314588035,1708435843459,-500.0,0.00040273,6]
[314588036,1708435843468,-500.0,0.00040273,6]
[314588037,1708435843478,-197.7198909,0.00040395,2]
[314588038,1708435843487,-153.55220965,0.00040447,8]
[314588039,1708435843496,-17342.87033173,0.00040521,14]
[314588040,1708435843506,-162.57744651,0.00040524,9]
[314588041,1708435843515,-783.78467868,0.00040527,5]
[314588042,1708435843524,-707.68,0.00040547,6]
[314588043,1708435843534,-500.0,0.00040547,6]
[314588044,1708435843543,-586.68,0.00040547,6]
[314588045,1708435843553,-6267.09789325,0.00040556,15]
[314588046,1708435843563,-150.0,0.00040571,30]
[314588047,1708435843572,-2844.63299237,0.00040575,8]
[314588048,1708435843581,-5974.25401913,0.00040575,15]
[314588049,1708435843591,-87844.2151916,0.00040584,6]
[314588050,1708435843600,-341.27,0.00040594,2]
[314588051,1708435843610,-775.62254177,0.00040607,2]
[314588052,1708435843619,-555.0,0.00040607,2]
[314588053,1708435843630,-153.80130941,0.000408,14]
[314588054,1708435843639,-707.68,0.00040821,6]
[314588055,1708435843649,-500.0,0.00040821,6]
[314588056,1708435843658,-707.68,0.00041095,6]
[314588057,1708435843668,-500.0,0.00041095,6]
[314588058,1708435843677,-197.7198909,0.00041103,2]
[314588059,1708435843687,-707.68,0.00041369,6]
[314588060,1708435843696,-500.0,0.00041369,6]
[314588061,1708435843705,-707.68,0.00041643,6]
[314588062,1708435843715,-500.0,0.00041643,6]
[314588063,1708435843724,-153.80130941,0.000417,16]
[314588064,1708435843734,-509.81797846,0.00041707,4]
[314588065,1708435843744,-275.97,0.000418,4]
[314588066,1708435843753,-275.97,0.000418,4]
[314588067,1708435843763,-275.97,0.000418,4]
[314588068,1708435843773,-275.97,0.000418,4]
[314588069,1708435843783,-275.97,0.000418,4]
[314588070,1708435843792,-275.97,0.000418,4]
[314588071,1708435843802,-275.97,0.000418,4]
[314588072,1708435843812,-275.97,0.000418,4]
[314588073,1708435843821,-275.97,0.000418,4]
[314588074,1708435843830,-275.97,0.000418,4]
[314588075,1708435843840,-275.97,0.000418,4]
[314588076,1708435843849,-275.97,0.000418,4]
[314588077,1708435843859,-275.97,0.000418,4]
[314588078,1708435843869,-275.97,0.000418,4]
[314588079,1708435843879,-275.97,0.000418,4]
[314588080,1708435843889,-275.97,0.000418,4]
[314588081,1708435843898,-275.97,0.000418,4]
[314588082,1708435843908,-275.97,0.000418,4]
[314588083,1708435843917,-275.97,0.000418,4]
[314588084,1708435843927,-275.97,0.000418,4]
[314588085,1708435843936,-707.69131941,0.00041917,6]
[314588086,1708435843946,-168.55030215,0.00041917,6]
[314588087,1708435843955,-1000.0,0.00041981,2]
[314588088,1708435843964,-1574.95286157,0.00042,120]
[314588089,1708435843973,-783.78467868,0.00042106,5]
[314588090,1708435843982,-152.3,0.00042192,2]
[314588091,1708435843991,-2000.0,0.000422,2]
[314588092,1708435844000,-666.0,0.00042465,2]
[314588093,1708435844009,-153.80130941,0.000426,17]
[314588094,1708435844019,-216.03164556,0.00042601,7]
[314588095,1708435844028,-195.26822488,0.00042601,7]
[314588096,1708435844037,-331.44300786,0.00042601,7]
[314588097,1708435844046,-341.27,0.00042858,2]
[314588098,1708435844056,-509.81797846,0.00043346,5]
[314588099,1708435844065,-153.80130941,0.000435,18]
[314588100,1708435844074,-1847.1930586,0.000436,5]
[314588101,1708435844083,-783.78467868,0.00043685,5]
[314588102,1708435844092,-275.97,0.000438,4]
[314588103,1708435844102,-275.97,0.000438,4]
[314588104,1708435844111,-275.97,0.000438,4]
[314588105,1708435844120,-275.97,0.000438,4]
[314588106,1708435844130,-275.97,0.000438,4]
[314588107,1708435844140,-275.97,0.000438,4]
[314588108,1708435844150,-275.97,0.000438,4]
[314588109,1708435844160,-275.97,0.000438,4]
[314588110,1708435844170,-275.97,0.000438,4]
[314588111,1708435844183,-275.97,0.000438,4]
[314588112,1708435844194,-275.97,0.000438,4]
[314588113,1708435844204,-275.97,0.000438,4]
[314588114,1708435844213,-275.97,0.000438,4]
[314588115,1708435844222,-275.97,0.000438,4]
[314588116,1708435844232,-275.97,0.000438,4]
[314588117,1708435844241,-275.97,0.000438,4]
[314588118,1708435844251,-275.97,0.000438,4]
[314588119,1708435844261,-275.97,0.000438,4]
[314588120,1708435844271,-275.97,0.000438,4]
[314588121,1708435844280,-275.97,0.000438,4]
[314588122,1708435844290,-2000.0,0.000438,2]
[314588123,1708435844299,-2000.0,0.000438,2]
[314588124,1708435844308,-890.06,0.00043836,15]
[314588125,1708435844318,-406.84,0.0004406,2]
[314588126,1708435844328,-153.80130941,0.000444,19]
[314588127,1708435844338,-156.37,0.00044459,120]
[314588128,1708435844347,-159.0,0.0004471,7]
[314588129,1708435844356,-2582.55,0.00044832,10]
[314588130,1708435844365,-1359.33,0.00044842,120]
[314588131,1708435844375,-2000.0,0.000449,2]
[314588132,1708435844386,-509.81797846,0.00044984,6]
[314588133,1708435844395,-1969.0,0.00045,21]
[314588134,1708435844406,-341.27,0.00045122,2]
[314588135,1708435844415,-783.78467868,0.00045264,5]
[314588136,1708435844425,-153.80130941,0.000453,20]
[314588137,1708435844434,-162.57744651,0.00045531,12]
[314588138,1708435844443,-275.97,0.000458,5]
[314588139,1708435844453,-275.97,0.000458,5]
[314588140,1708435844463,-275.97,0.000458,5]
[314588141,1708435844472,-275.97,0.000458,5]
[314588142,1708435844481,-275.97,0.000458,5]
[314588143,1708435844490,-275.97,0.000458,5]
[314588144,1708435844500,-275.97,0.000458,5]
[314588145,1708435844509,-275.97,0.000458,5]
[314588146,1708435844518,-275.97,0.000458,5]
[314588147,1708435844528,-275.97,0.000458,5]
[314588148,1708435844539,-275.97,0.000458,5]
[314588149,1708435844547,-275.97,0.000458,5]
[314588150,1708435844557,-275.97,0.000458,5]
[314588151,1708435844566,-275.97,0.000458,5]
[314588152,1708435844575,-275.97,0.000458,5]
[314588153,1708435844584,-275.97,0.000458,5]
[314588154,1708435844594,-275.97,0.000458,5]
[314588155,1708435844603,-275.97,0.000458,5]
[314588156,1708435844612,-275.97,0.000458,5]
[314588157,1708435844621,-275.97,0.000458,5]
[314588158,1708435844632,-152.3,0.00046027,2]
[314588159,1708435844642,-1000.0,0.0004618,2]
[314588160,1708435844651,-153.80130941,0.000462,21]
[314588161,1708435844660,-150.0,0.00046575,2]
[314588162,1708435844669,-509.81797846,0.00046623,8]
[314588163,1708435844679,-2047.0,0.000467,115]
[314588164,1708435844688,-208.0,0.00046798,10]
[314588165,1708435844698,-208.0,0.00046798,10]
[314588166,1708435844707,-783.78467868,0.00046843,5]
[314588167,1708435844716,-9915.76606564,0.0004699,30]
[314588168,1708435844731,-8084.23393436,0.0004699,30]
[314588169,1708435844740,-406.84,0.0004699,2]
[314588170,1708435844749,-3500.0,0.00047,120]
[314588171,1708435844759,-153.80130941,0.000471,22]
[314588172,1708435844768,-10000.0,0.0004717,4]
[314588173,1708435844777,-300.0,0.0004726,2]
[314588174,1708435844786,-341.27,0.00047386,2]
[314588175,1708435844795,-2770.68,0.00047456,30]
[314588176,1708435844804,-2770.68,0.00047456,30]
[314588177,1708435844813,-2770.68,0.00047456,30]
[314588178,1708435844822,-2770.68,0.00047456,30]
[314588179,1708435844831,-6890.00165564,0.00047466,2]
[314588180,1708435844841,-3500.0,0.000475,120]
[314588181,1708435844850,-1000.0,0.00047534,30]
[314588182,1708435844859,-1000.0,0.00047534,30]
[314588183,1708435844871,-1000.0,0.00047534,30]
[314588184,1708435844881,-890.06,0.00047572,15]
[314588185,1708435844890,-150.0,0.00047607,7]
[314588186,1708435844898,-150.0,0.00047621,7]
[314588187,1708435844908,-150.0,0.00047638,7]
[314588188,1708435844917,-2000.0,0.000477,2]
[314588189,1708435844926,-150.0,0.00047706,7]
[314588190,1708435844935,-800.0,0.00047714,20]
[314588191,1708435844946,-1064.78073,0.0004772,38]
[314588192,1708435844955,-150.0,0.00047726,7]
[314588193,1708435844964,-1157.4035228,0.00047728,2]
[314588194,1708435844974,-2770.68,0.00047729,30]
[314588195,1708435844983,-2770.68,0.00047729,30]
[314588196,1708435844992,-150.0,0.0004776,7]
[314588197,1708435845002,-150.0,0.00047774,7]
[314588198,1708435845012,-150.0,0.00047779,7]
[314588199,1708435845021,-150.0,0.00047785,7]
[314588200,1708435845031,-87844.2151916,0.0004779,11]
[314588201,1708435845041,-275.97,0.000478,5]
[314588202,1708435845050,-275.97,0.000478,5]
[314588203,1708435845060,-275.97,0.000478,5]
[314588204,1708435845069,-275.97,0.000478,5]
[314588205,1708435845079,-275.97,0.000478,5]
[314588206,1708435845088,-275.97,0.000478,5]
[314588207,1708435845097,-275.97,0.000478,5]
[314588208,1708435845107,-275.97,0.000478,5]
[314588209,1708435845116,-275.97,0.000478,5]
[314588210,1708435845125,-275.97,0.000478,5]
[314588211,1708435845136,-275.97,0.000478,5]
[314588212,1708435845145,-275.97,0.000478,5]
[314588213,1708435845155,-275.97,0.000478,5]
[314588214,1708435845165,-275.97,0.000478,5]
[314588215,1708435845174,-275.97,0.000478,5]
[314588216,1708435845183,-275.97,0.000478,5]
[314588217,1708435845192,-275.97,0.000478,5]
[314588218,1708435845201,-275.97,0.000478,5]
[314588219,1708435845210,-275.97,0.000478,5]
[314588220,1708435845219,-275.97,0.000478,5]
[314588221,1708435845228,-865.68833903,0.00047801,14]
[314588222,1708435845237,-150.0,0.00047806,7]
[314588223,1708435845246,-150.0,0.00047807,7]
[314588224,1708435845256,-150.0,0.00047809,7]
[314588225,1708435845265,-1441.96328614,0.0004781,2]
[314588226,1708435845274,-150.0,0.00047813,7]
[314588227,1708435845283,-150.0,0.0004782,7]
[314588228,1708435845292,-150.0,0.00047822,7]
[314588229,1708435845301,-150.0,0.00047823,7]
[314588230,1708435845310,-150.0,0.00047841,7]
[314588231,1708435845319,-150.0,0.00047849,7]
[314588232,1708435845328,-1000.0,0.00047869,60]
[314588233,1708435845337,-150.0,0.00047872,7]
[314588234,1708435845347,-150.0,0.00047873,7]
[314588235,1708435845356,-67466.6268486,0.00047879,11]
[314588236,1708435845373,-216.0,0.00042028,2]
[314588237,1708435845384,-20377.588343,0.00047879,11]
[314588238,1708435845393,-3462.142322,0.0004788,30]
[314588239,1708435845402,-75810.664087,0.0004788,30]
[314588240,1708435845411,-1718.49981,0.0004788,30]
[314588241,1708435845420,-150.0,0.00047881,7]
[314588242,1708435845429,-150.0,0.00047888,7]
[314588243,1708435845439,-150.0,0.00047894,7]
[314588244,1708435845449,-150.0,0.00047894,7]
[314588245,1708435845459,-150.0,0.00047896,7]
[314588246,1708435845468,-1000.0,0.00047899,2]
[314588247,1708435845477,-150.0,0.00047902,7]
[314588248,1708435845486,-150.0,0.00047904,7]
[314588249,1708435845495,-150.0,0.00047905,7]
[314588250,1708435845505,-150.0,0.00047909,7]
[314588251,1708435845514,-150.0,0.00047912,7]
[314588252,1708435845523,-3790.34461141,0.0004792,2]
[314588253,1708435845532,-150.0,0.00047928,7]
[314588254,1708435845541,-450.0,0.00047945,7]
[314588255,1708435845550,-150.0,0.00047952,7]
[314588256,1708435845560,-150.0,0.00047952,7]
[314588257,1708435845569,-150.0,0.00047955,7]
[314588258,1708435845578,-150.0,0.00047958,7]
[314588259,1708435845588,-1500.0,0.00047958,7]
[314588260,1708435845597,-150.0,0.00047959,7]
[314588261,1708435845606,-150.0,0.00047965,7]
[314588262,1708435845616,-150.0,0.00047971,7]
[314588263,1708435845625,-150.0,0.00047973,7]
[314588264,1708435845636,-150.0,0.00047974,7]
[314588265,1708435845647,-150.0,0.00047979,7]
[314588266,1708435845656,-87844.2151916,0.0004798,11]
[314588267,1708435845665,-150.0,0.00047981,7]
[314588269,1708435845675,-150.0,0.00047984,7]
[314588272,1708435845684,-150.0,0.00047985,7]
[314588274,1708435845693,-150.0,0.00047986,7]
[314588277,1708435845702,-87844.2151916,0.0004799,11]
[314588279,1708435845712,-150.0,0.00047994,7]
[314588281,1708435845721,-150.0,0.00047996,7]
[314588282,1708435845730,-150.0,0.00047997,7]
[314588283,1708435845741,-200.0,0.00048,25]
[314588284,1708435845751,-150.0,0.00048,22]
[314588286,1708435845761,-200.0,0.00048,2]
[314588291,1708435845802,-200.0,0.00048,2]
[314588293,1708435845811,-200.0,0.00048,2]